fUSD/lending_fUSD_20241122
["ID","MTS","AMOUNT","RATE_DAILY","PERIOD"]
[343020233,1732288284783,-153.0,0.00094383,120]
[343020234,1732288284794,-153.0,0.00094383,120]
[343020235,1732288284804,-500.0,0.00094389,120]
[343020236,1732288284814,-500.0,0.00094389,120]
[343020237,1732288284823,-577.74,0.00094389,120]
[343020238,1732288284833,-708.93,0.00094389,120]
[343020239,1732288284925,-7710.94,0.00094389,120]
[343020240,1732288284935,-500.0,0.00094389,120]
[343020241,1732288284945,-500.0,0.00094389,120]
[343020242,1732288284956,-1837.38,0.00094389,120]
[343020243,1732288284965,-597.89276638,0.00094397,120]
[343020244,1732288284975,-500.0,0.00094397,120]
[343020245,1732288284985,-343.32586015,0.00094397,120]
[343020246,1732288284995,-505.00427016,0.00094397,120]
[343020247,1732288285005,-637.48,0.00094397,120]
[343020248,1732288285015,-500.0,0.00094397,120]
[343020249,1732288285026,-500.0,0.00094397,120]
[343020250,1732288285036,-500.0,0.00094397,120]
[343020251,1732288285046,-537.18,0.00094397,120]
[343020252,1732288285057,-500.0,0.00094397,120]
[343020253,1732288285067,-500.0,0.00094397,120]
[343020254,1732288285078,-500.0,0.00094397,120]
[343020255,1732288285088,-500.0,0.00094397,120]
[343020256,1732288285100,-500.0,0.00094397,120]
[343020257,1732288285110,-872.33,0.00094397,120]
[343020258,1732288285119,-500.0,0.00094397,120]
[343020259,1732288285129,-500.0,0.00094397,120]
[343020260,1732288285140,-500.0,0.00094397,120]
[343020261,1732288285150,-847.2,0.00094397,120]
[343020262,1732288285160,-500.0,0.00094397,120]
[343020263,1732288285170,-621.36,0.00094397,120]
[343020264,1732288285180,-605.05,0.00094397,120]
[343020265,1732288285189,-500.0,0.00094397,120]
[343020266,1732288285199,-498.62695053,0.00094397,120]
[343020267,1732288285209,-500.0,0.00094397,120]
[343020268,1732288285219,-500.0,0.00094397,120]
[343020269,1732288285228,-500.0,0.00094397,120]
[343020270,1732288285238,-406.54361447,0.00094397,120]
[343020271,1732288285247,-230.89,0.00094397,120]
[343020272,1732288285257,-258.86,0.00094397,120]
[343020273,1732288285266,-500.0,0.00094397,120]
[343020274,1732288285276,-523.48,0.00094397,120]
[343020275,1732288285285,-500.0,0.00094397,120]
[343020276,1732288285295,-500.0,0.00094397,120]
[343020277,1732288285304,-500.0,0.00094397,120]
[343020278,1732288285314,-500.0,0.00094397,120]
[343020279,1732288285324,-500.0,0.00094397,120]
[343020280,1732288285333,-500.0,0.00094397,120]
[343020281,1732288285342,-500.0,0.00094397,120]
[343020282,1732288285351,-1168.69,0.00094397,2]
[343020283,1732288285361,-500.0,0.00094397,120]
[343020284,1732288285371,-500.0,0.00094397,120]
[343020285,1732288285382,-260.13995849,0.00094397,120]
[343020286,1732288285392,-298.12686281,0.00094397,120]
[343020287,1732288285403,-3483.61,0.00094397,120]
[343020288,1732288285413,-500.0,0.00094397,120]
[343020289,1732288285424,-500.0,0.00094397,120]
[343020290,1732288285434,-500.0,0.00094397,120]
[343020291,1732288285444,-500.0,0.00094397,120]
[343020292,1732288285455,-500.0,0.00094397,120]
[343020293,1732288285464,-532.25801467,0.00094397,120]
[343020294,1732288285474,-500.0,0.00094397,120]
[343020295,1732288285484,-500.0,0.00094397,120]
[343020296,1732288285494,-500.0,0.00094397,120]
[343020297,1732288285504,-506.7564487,0.00094397,120]
[343020298,1732288285513,-500.0,0.00094397,120]
[343020299,1732288285523,-50000.0,0.000944,120]
[343020300,1732288285533,-153.0,0.00094401,120]
[343020301,1732288285543,-153.0,0.00094401,120]
[343020302,1732288285553,-15000.0,0.0009444,30]
[343020303,1732288285564,-580.69972361,0.0009444,30]
[343020304,1732288285574,-3000.0,0.000945,120]
[343020305,1732288285584,-232.75989587,0.00094567,15]
[343020306,1732288285594,-3000.0,0.00094625,120]
[343020307,1732288285605,-398.61129943,0.00094722,120]
[343020308,1732288285614,-3000.0,0.0009475,120]
[343020309,1732288285625,-2998.967587,0.000948,120]
[343020310,1732288285636,-7280.5536555,0.000948,120]
[343020311,1732288285645,-1636.79225,0.0009481,120]
[343020312,1732288285655,-514.88,0.00094868,120]
[343020313,1732288285667,-500.0,0.00094868,120]
[343020314,1732288285677,-2797.37,0.00094868,120]
[343020315,1732288285687,-500.0,0.00094868,120]
[343020316,1732288285697,-1109.539819,0.00094869,120]
[343020317,1732288285706,-1109.539819,0.00094869,120]
[343020318,1732288285716,-3000.0,0.00094875,120]
[343020319,1732288285726,-500.0,0.00094889,120]
[343020320,1732288285735,-371.21522712,0.000949,20]
[343020321,1732288285745,-1100.0,0.000949,34]
[343020322,1732288285755,-3739.82554271,0.000949,15]
[343020323,1732288285764,-500.0,0.00094937,120]
[343020324,1732288285773,-500.0,0.00094937,120]
[343020325,1732288285783,-577.74,0.00094937,120]
[343020326,1732288285792,-708.93,0.00094937,120]
[343020327,1732288285802,-7710.94,0.00094937,120]
[343020328,1732288285811,-500.0,0.00094937,120]
[343020329,1732288285821,-242.02,0.00094937,120]
[343020330,1732288285831,-1837.38,0.00094937,120]
[343020331,1732288285840,-500.0,0.00094938,120]
[343020332,1732288285850,-637.48,0.00094938,120]
[343020333,1732288285861,-500.0,0.00094938,120]
[343020334,1732288285871,-500.0,0.00094938,120]
[343020335,1732288285883,-500.0,0.00094938,120]
[343020336,1732288285893,-537.18,0.00094938,120]
[343020337,1732288285904,-500.0,0.00094938,120]
[343020338,1732288285914,-500.0,0.00094938,120]
[343020339,1732288285925,-500.0,0.00094938,120]
[343020340,1732288285935,-500.0,0.00094938,120]
[343020341,1732288285946,-594.43658074,0.00094938,120]
[343020342,1732288285956,-872.33,0.00094938,120]
[343020343,1732288285966,-500.0,0.00094938,120]
[343020344,1732288285976,-500.0,0.00094938,120]
[343020345,1732288285986,-500.0,0.00094938,120]
[343020346,1732288285995,-605.05,0.00094938,120]
[343020347,1732288286006,-500.0,0.00094938,120]
[343020348,1732288286017,-500.0,0.00094938,120]
[343020349,1732288286029,-500.0,0.00094938,120]
[343020350,1732288286038,-500.0,0.00094938,120]
[343020351,1732288286048,-500.0,0.00094938,120]
[343020352,1732288286059,-500.0,0.00094938,120]
[343020353,1732288286069,-500.0,0.00094938,120]
[343020354,1732288286079,-259.77161035,0.00094938,120]
[343020355,1732288286089,-500.0,0.00094938,120]
[343020356,1732288286100,-500.0,0.00094938,120]
[343020357,1732288286110,-500.0,0.00094938,120]
[343020358,1732288286121,-1168.69,0.00094938,2]
[343020359,1732288286134,-500.0,0.00094938,120]
[343020360,1732288286144,-554.52472514,0.00094938,120]
[343020361,1732288286154,-3483.61,0.00094938,120]
[343020362,1732288286165,-500.0,0.00094938,120]
[343020363,1732288286175,-500.0,0.00094938,120]
[343020364,1732288286186,-500.0,0.00094938,120]
[343020365,1732288286196,-500.0,0.00094938,120]
[343020366,1732288286206,-500.0,0.00094938,120]
[343020367,1732288286217,-500.0,0.00094938,120]
[343020368,1732288286227,-500.0,0.00094938,120]
[343020369,1732288286237,-500.0,0.00094938,120]
[343020370,1732288286253,-500.0,0.00094946,120]
[343020371,1732288286275,-1022.06,0.00094946,120]
[343020372,1732288286298,-544.32,0.00094946,120]
[343020373,1732288286320,-500.0,0.00094946,21]
[343020374,1732288286342,-571.1,0.00094946,120]
[343020375,1732288286364,-500.0,0.00094947,120]
[343020376,1732288286388,-500.0,0.00094947,120]
[343020377,1732288286411,-847.2,0.00094947,120]
[343020378,1732288286434,-621.36,0.00094947,120]
[343020379,1732288286457,-500.0,0.00094947,120]
[343020380,1732288286479,-523.48,0.00094947,120]
[343020381,1732288286502,-166.82955001,0.0009495,83]
[343020382,1732288286518,-500.0,0.00094958,120]
[343020383,1732288286528,-500.0,0.00094958,120]
[343020384,1732288286538,-500.0,0.00094958,120]
[343020385,1732288286548,-173.05,0.00094958,120]
[343020386,1732288286558,-500.0,0.00094958,120]
[343020387,1732288286568,-500.0,0.00094958,120]
[343020388,1732288286579,-500.0,0.00094958,120]
[343020389,1732288286589,-500.0,0.00094958,120]
[343020390,1732288286599,-637.48,0.00094958,120]
[343020391,1732288286609,-500.0,0.00094958,120]
[343020392,1732288286619,-500.0,0.00094958,120]
[343020393,1732288286629,-500.0,0.00094958,120]
[343020394,1732288286640,-500.0,0.00094958,120]
[343020395,1732288286649,-500.0,0.00094958,120]
[343020396,1732288286657,-500.0,0.00094958,120]
[343020397,1732288286667,-500.0,0.00094958,120]
[343020398,1732288286676,-500.0,0.00094958,120]
[343020399,1732288286686,-500.0,0.00094958,120]
[343020400,1732288286696,-500.0,0.00094958,120]
[343020401,1732288286705,-500.0,0.00094958,120]
[343020402,1732288286715,-188.27422385,0.00094958,120]
[343020403,1732288286725,-500.0,0.00094958,120]
[343020404,1732288286734,-500.0,0.00094958,120]
[343020405,1732288286742,-537.18,0.00094958,120]
[343020406,1732288286752,-500.0,0.00094958,120]
[343020407,1732288286761,-500.0,0.00094958,120]
[343020408,1732288286772,-500.0,0.00094958,120]
[343020409,1732288286781,-500.0,0.00094958,120]
[343020410,1732288286791,-500.0,0.00094958,120]
[343020411,1732288286801,-500.0,0.00094958,120]
[343020412,1732288286810,-500.0,0.00094958,120]
[343020413,1732288286819,-500.0,0.00094958,120]
[343020414,1732288286829,-500.0,0.00094958,120]
[343020415,1732288286839,-562.96,0.00094958,120]
[343020416,1732288286848,-500.0,0.00094958,120]
[343020417,1732288286857,-500.0,0.00094958,120]
[343020418,1732288286867,-500.0,0.00094958,120]
[343020419,1732288286876,-305.81,0.00094958,120]
[343020420,1732288286889,-500.0,0.00094958,120]
[343020421,1732288286898,-500.0,0.00094958,120]
[343020422,1732288286907,-500.0,0.00094958,120]
[343020423,1732288286917,-500.0,0.00094958,120]
[343020424,1732288286927,-500.0,0.00094958,120]
[343020425,1732288286936,-500.63,0.00094958,120]
[343020426,1732288286946,-500.0,0.00094958,120]
[343020427,1732288286957,-500.0,0.00094958,120]
[343020428,1732288286966,-500.0,0.00094958,120]
[343020429,1732288286976,-500.0,0.00094958,120]
[343020430,1732288286985,-500.0,0.00094958,120]
[343020431,1732288286996,-402.32400604,0.00094958,120]
[343020432,1732288287005,-500.0,0.00094958,120]
[343020433,1732288287015,-500.0,0.00094958,120]
[343020434,1732288287028,-500.0,0.00094958,120]
[343020435,1732288287038,-500.0,0.00094958,120]
[343020436,1732288287047,-500.0,0.00094958,120]
[343020437,1732288287055,-500.0,0.00094958,120]
[343020438,1732288287065,-666.12,0.00094958,120]
[343020439,1732288287075,-500.0,0.00094958,120]
[343020440,1732288287084,-151.0,0.00094958,120]
[343020441,1732288287094,-872.33,0.00094958,120]
[343020442,1732288287105,-500.0,0.00094958,120]
[343020443,1732288287115,-500.0,0.00094958,120]
[343020444,1732288287125,-500.0,0.00094958,120]
[343020445,1732288287137,-500.0,0.00094958,120]
[343020446,1732288287147,-500.0,0.00094958,120]
[343020447,1732288287156,-605.05,0.00094958,120]
[343020448,1732288287166,-500.0,0.00094958,120]
[343020449,1732288287176,-577.74,0.00094958,120]
[343020450,1732288287186,-242.01636789,0.00094958,120]
[343020451,1732288287196,-500.0,0.00094958,120]
[343020452,1732288287205,-500.0,0.00094958,120]
[343020453,1732288287215,-557.050427,0.00094958,120]
[343020454,1732288287225,-500.0,0.00094958,120]
[343020455,1732288287235,-500.0,0.00094958,120]
[343020456,1732288287245,-500.0,0.00094958,120]
[343020457,1732288287255,-1118.107939,0.00094958,120]
[343020458,1732288287265,-500.0,0.00094958,120]
[343020459,1732288287274,-1118.107939,0.00094958,120]
[343020460,1732288287283,-708.93,0.00094958,120]
[343020461,1732288287293,-500.0,0.00094958,120]
[343020462,1732288287303,-1168.69,0.00094958,2]
[343020463,1732288287312,-500.0,0.00094958,120]
[343020464,1732288287322,-500.0,0.00094958,120]
[343020465,1732288287332,-7710.94,0.00094958,120]
[343020466,1732288287341,-3483.61,0.00094958,120]
[343020467,1732288287351,-590.925551,0.00094958,120]
[343020468,1732288287360,-500.0,0.00094958,120]
[343020469,1732288287371,-500.0,0.00094958,120]
[343020470,1732288287382,-500.0,0.00094958,120]
[343020471,1732288287392,-500.0,0.00094958,120]
[343020472,1732288287403,-500.0,0.00094958,120]
[343020473,1732288287413,-500.0,0.00094958,120]
[343020474,1732288287423,-618.37554053,0.00094958,120]
[343020475,1732288287432,-390.54475224,0.00094958,120]
[343020476,1732288287442,-1837.38,0.00094958,120]
[343020477,1732288287451,-2959.0,0.00094959,120]
[343020478,1732288287461,-179.979426,0.00094959,120]
[343020479,1732288287471,-179.979426,0.00094959,120]
[343020480,1732288287483,-500.0,0.0009496,120]
[343020481,1732288287495,-500.0,0.0009496,120]
[343020482,1732288287505,-501.14883148,0.0009496,120]
[343020483,1732288287514,-500.0,0.0009496,120]
[343020484,1732288287524,-500.0,0.0009496,120]
[343020485,1732288287534,-500.0,0.0009496,120]
[343020486,1732288287543,-500.0,0.0009496,120]
[343020487,1732288287552,-500.0,0.0009496,120]
[343020488,1732288287562,-500.0,0.0009496,20]
[343020489,1732288287572,-500.0,0.0009496,120]
[343020490,1732288287582,-231.85760609,0.0009496,120]
[343020491,1732288287592,-530.22,0.0009496,120]
[343020492,1732288287601,-500.0,0.0009496,120]
[343020493,1732288287611,-500.0,0.0009496,120]
[343020494,1732288287620,-500.0,0.0009496,120]
[343020495,1732288287630,-500.0,0.0009496,120]
[343020496,1732288287642,-500.0,0.0009496,120]
[343020497,1732288287652,-500.0,0.0009496,120]
[343020498,1732288287662,-500.0,0.00094967,120]
[343020499,1732288287671,-500.0,0.00094967,120]
[343020500,1732288287685,-500.0,0.00094967,120]
[343020501,1732288287694,-503.78606313,0.00094967,120]
[343020502,1732288287705,-1022.06,0.00094967,120]
[343020503,1732288287715,-1022.06,0.00094967,120]
[343020504,1732288287725,-577.74,0.00094967,120]
[343020505,1732288287735,-544.32,0.00094967,120]
[343020506,1732288287746,-544.32,0.00094967,120]
[343020507,1732288287756,-500.0,0.00094967,21]
[343020508,1732288287766,-500.0,0.00094967,21]
[343020509,1732288287776,-708.93,0.00094967,120]
[343020510,1732288287786,-7710.94,0.00094967,120]
[343020511,1732288287796,-394.5,0.00094967,120]
[343020512,1732288287806,-1837.38,0.00094967,120]
[343020513,1732288287816,-637.48,0.00094968,120]
[343020514,1732288287826,-500.0,0.00094968,120]
[343020515,1732288287836,-500.0,0.00094968,120]
[343020516,1732288287846,-500.0,0.00094968,120]
[343020517,1732288287856,-537.18,0.00094968,120]
[343020518,1732288287867,-500.0,0.00094968,120]
[343020519,1732288287877,-500.0,0.00094968,120]
[343020520,1732288287891,-1109.539819,0.00094968,120]
[343020521,1732288287901,-1109.539819,0.00094968,120]
[343020522,1732288287911,-872.33,0.00094968,120]
[343020523,1732288287921,-500.0,0.00094968,120]
[343020524,1732288287931,-500.0,0.00094968,120]
[343020525,1732288287941,-500.0,0.00094968,120]
[343020526,1732288287951,-605.05,0.00094968,120]
[343020527,1732288287962,-500.0,0.00094968,120]
[343020528,1732288287973,-465.08506895,0.00094968,120]
[343020529,1732288287983,-393.02306838,0.00094968,120]
[343020530,1732288287993,-375.63,0.00094968,120]
[343020531,1732288288003,-500.0,0.00094968,120]
[343020532,1732288288013,-500.0,0.00094968,120]
[343020533,1732288288024,-500.0,0.00094968,120]
[343020534,1732288288038,-1168.69,0.00094968,2]
[343020535,1732288288048,-613.86,0.00094968,120]
[343020536,1732288288058,-3483.61,0.00094968,120]
[343020537,1732288288067,-500.0,0.00094968,120]
[343020538,1732288288079,-613.66660664,0.00094968,120]
[343020539,1732288288227,-265.95134559,0.00094968,120]
[343020540,1732288288237,-518.93970099,0.00094968,120]
[343020541,1732288288247,-500.0,0.00094969,120]
[343020542,1732288288257,-607.95834239,0.00094969,120]
[343020543,1732288288266,-500.0,0.00094969,120]
[343020544,1732288288276,-500.0,0.00094969,120]
[343020545,1732288288285,-500.0,0.00094969,120]
[343020546,1732288288295,-247.52,0.00094969,120]
[343020547,1732288288305,-500.0,0.00094969,120]
[343020548,1732288288315,-521.86828263,0.00094969,120]
[343020549,1732288288325,-500.0,0.00094969,120]
[343020550,1732288288336,-500.0,0.00094969,120]
[343020551,1732288288346,-584.69545679,0.00094969,120]
[343020552,1732288288356,-500.0,0.00094969,120]
[343020553,1732288288366,-500.0,0.00094969,120]
[343020554,1732288288375,-500.0,0.00094969,120]
[343020555,1732288288387,-500.0,0.00094969,120]
[343020556,1732288288396,-500.0,0.00094969,120]
[343020557,1732288288406,-500.0,0.00094969,120]
[343020558,1732288288415,-500.0,0.00094969,120]
[343020559,1732288288425,-500.0,0.00094969,120]
[343020560,1732288288435,-500.0,0.00094969,120]
[343020561,1732288288444,-500.0,0.00094969,120]
[343020562,1732288288454,-500.0,0.00094969,120]
[343020563,1732288288463,-500.0,0.00094969,120]
[343020564,1732288288473,-500.0,0.00094969,120]
[343020565,1732288288482,-500.0,0.00094969,120]
[343020566,1732288288491,-500.0,0.00094969,120]
[343020567,1732288288500,-500.0,0.00094969,120]
[343020568,1732288288509,-508.59805814,0.00094969,120]
[343020569,1732288288518,-500.0,0.00094969,120]
[343020570,1732288288528,-500.0,0.00094969,120]
[343020571,1732288288537,-337.29,0.00094969,120]
[343020572,1732288288546,-500.0,0.00094969,120]
[343020573,1732288288556,-500.0,0.00094969,120]
[343020574,1732288288565,-500.0,0.00094969,120]
[343020575,1732288288574,-500.0,0.00094969,120]
[343020576,1732288288584,-500.0,0.00094969,120]
[343020577,1732288288594,-500.0,0.00094969,20]
[343020578,1732288288603,-500.0,0.00094969,120]
[343020579,1732288288612,-551.73840342,0.00094969,120]
[343020580,1732288288622,-500.0,0.00094969,120]
[343020581,1732288288632,-500.0,0.00094969,120]
[343020582,1732288288642,-500.0,0.00094969,120]
[343020583,1732288288651,-530.22,0.00094969,120]
[343020584,1732288288660,-500.0,0.00094969,120]
[343020585,1732288288670,-500.0,0.00094969,120]
[343020586,1732288288679,-500.0,0.00094969,120]
[343020587,1732288288688,-500.0,0.00094969,120]
[343020588,1732288288698,-500.0,0.00094969,120]
[343020589,1732288288708,-500.0,0.00094969,120]
[343020590,1732288288718,-500.0,0.00094969,120]
[343020591,1732288288728,-500.0,0.00094969,120]
[343020592,1732288288737,-500.0,0.00094969,120]
[343020593,1732288288747,-500.0,0.00094969,120]
[343020594,1732288288757,-666.12,0.00094969,120]
[343020595,1732288288767,-500.0,0.00094969,120]
[343020596,1732288288776,-500.0,0.00094969,120]
[343020597,1732288288786,-500.0,0.00094969,120]
[343020598,1732288288796,-500.0,0.00094969,120]
[343020599,1732288288806,-500.0,0.00094969,120]
[343020600,1732288288815,-514.88,0.00094969,120]
[343020601,1732288288825,-500.0,0.00094969,120]
[343020602,1732288288835,-500.0,0.00094969,120]
[343020603,1732288288845,-2797.37,0.00094969,120]
[343020604,1732288288855,-324.36,0.00094969,120]
[343020605,1732288288864,-151.0,0.0009497,120]
[343020606,1732288288874,-500.0,0.0009497,120]
[343020607,1732288288883,-500.0,0.0009497,120]
[343020608,1732288288893,-847.2,0.0009497,120]
[343020609,1732288288903,-621.36,0.0009497,120]
[343020610,1732288288912,-500.0,0.0009497,120]
[343020611,1732288288922,-523.48,0.0009497,120]
[343020612,1732288288931,-500.0,0.00094978,120]
[343020613,1732288288941,-500.0,0.00094978,120]
[343020614,1732288288950,-500.0,0.00094978,120]
[343020615,1732288288960,-500.0,0.00094978,120]
[343020616,1732288288970,-500.0,0.00094978,120]
[343020617,1732288288980,-637.48,0.00094978,120]
[343020618,1732288288990,-500.0,0.00094978,120]
[343020619,1732288288999,-500.0,0.00094978,120]
[343020620,1732288289009,-484.05191287,0.00094978,120]
[343020621,1732288289020,-500.0,0.00094978,120]
[343020622,1732288289033,-500.0,0.00094978,120]
[343020623,1732288289042,-500.0,0.00094978,120]
[343020624,1732288289052,-500.0,0.00094978,120]
[343020625,1732288289062,-500.0,0.00094978,120]
[343020626,1732288289073,-500.0,0.00094978,120]
[343020627,1732288289083,-500.0,0.00094978,120]
[343020628,1732288289092,-500.0,0.00094978,120]
[343020629,1732288289103,-500.0,0.00094978,120]
[343020630,1732288289113,-500.0,0.00094978,120]
[343020631,1732288289123,-500.0,0.00094978,120]
[343020632,1732288289133,-537.18,0.00094978,120]
[343020633,1732288289143,-500.0,0.00094978,120]
[343020634,1732288289153,-500.0,0.00094978,120]
[343020635,1732288289163,-500.0,0.00094978,120]
[343020636,1732288289172,-500.0,0.00094978,120]
[343020637,1732288289182,-500.0,0.00094978,120]
[343020638,1732288289192,-500.0,0.00094978,120]
[343020639,1732288289202,-500.0,0.00094978,120]
[343020640,1732288289212,-500.0,0.00094978,120]
[343020641,1732288289222,-500.0,0.00094978,120]
[343020642,1732288289231,-325.854077,0.00094978,120]
[343020643,1732288289241,-500.0,0.00094978,120]
[343020644,1732288289251,-500.0,0.00094978,120]
[343020645,1732288289261,-500.0,0.00094978,120]
[343020646,1732288289271,-500.0,0.00094978,120]
[343020647,1732288289281,-399.87,0.00094978,120]
[343020648,1732288289292,-500.0,0.00094978,120]
[343020649,1732288289302,-500.0,0.00094978,20]
[343020650,1732288289311,-500.0,0.00094978,120]
[343020651,1732288289320,-500.0,0.00094978,120]
[343020652,1732288289331,-500.0,0.00094978,120]
[343020653,1732288289341,-577.35,0.00094978,120]
[343020654,1732288289351,-530.22,0.00094978,120]
[343020655,1732288289361,-500.0,0.00094978,120]
[343020656,1732288289372,-500.0,0.00094978,120]
[343020657,1732288289382,-500.0,0.00094978,120]
[343020658,1732288289392,-500.0,0.00094978,120]
[343020659,1732288289402,-500.0,0.00094978,120]
[343020660,1732288289412,-500.0,0.00094978,120]
[343020661,1732288289422,-500.0,0.00094978,120]
[343020662,1732288289432,-500.0,0.00094978,120]
[343020663,1732288289441,-500.0,0.00094978,120]
[343020664,1732288289450,-500.0,0.00094978,120]
[343020665,1732288289460,-500.0,0.00094978,120]
[343020666,1732288289470,-500.0,0.00094978,120]
[343020667,1732288289479,-500.0,0.00094978,120]
[343020668,1732288289489,-666.12,0.00094978,120]
[343020669,1732288289499,-500.0,0.00094978,120]
[343020670,1732288289508,-872.33,0.00094978,120]
[343020671,1732288289518,-500.0,0.00094978,120]
[343020672,1732288289527,-500.0,0.00094978,120]
[343020673,1732288289537,-500.0,0.00094978,120]
[343020674,1732288289547,-500.0,0.00094978,120]
[343020675,1732288289556,-500.0,0.00094978,120]
[343020676,1732288289566,-500.0,0.00094978,120]
[343020677,1732288289575,-847.2,0.00094978,120]
[343020678,1732288289588,-847.2,0.00094978,120]
[343020679,1732288289597,-847.2,0.00094978,120]
[343020680,1732288289607,-500.0,0.00094978,120]
[343020681,1732288289616,-500.0,0.00094978,120]
[343020682,1732288289626,-500.0,0.00094978,120]
[343020683,1732288289637,-1022.06,0.00094978,120]
[343020684,1732288289647,-621.36,0.00094978,120]
[343020685,1732288289657,-621.36,0.00094978,120]
[343020686,1732288289666,-467.04,0.00094978,120]
[343020687,1732288289676,-621.36,0.00094978,120]
[343020688,1732288289686,-605.05,0.00094978,120]
[343020689,1732288289695,-500.0,0.00094978,120]
[343020690,1732288289705,-500.0,0.00094978,120]
[343020691,1732288289715,-577.74,0.00094978,120]
[343020692,1732288289725,-500.0,0.00094978,120]
[343020693,1732288289735,-500.0,0.00094978,120]
[343020694,1732288289745,-500.0,0.00094978,120]
[343020695,1732288289755,-523.48,0.00094978,120]
[343020696,1732288289764,-523.48,0.00094978,120]
[343020697,1732288289774,-523.48,0.00094978,120]
[343020698,1732288289783,-544.32,0.00094978,120]
[343020699,1732288289793,-403.42018397,0.00094978,120]
[343020700,1732288289803,-500.0,0.00094978,120]
[343020701,1732288289813,-500.0,0.00094978,120]
[343020702,1732288289823,-500.0,0.00094978,21]
[343020703,1732288289832,-708.93,0.00094978,120]
[343020704,1732288289842,-500.0,0.00094978,120]
[343020705,1732288289852,-514.88,0.00094978,120]
[343020706,1732288289861,-514.88,0.00094978,120]
[343020707,1732288289871,-514.88,0.00094978,120]
[343020708,1732288289880,-514.88,0.00094978,120]
[343020709,1732288289892,-514.96,0.00094978,120]
[343020710,1732288289902,-1168.69,0.00094978,2]
[343020711,1732288289912,-500.0,0.00094978,120]
[343020712,1732288289921,-7710.94,0.00094978,120]
[343020713,1732288289930,-3483.61,0.00094978,120]
[343020714,1732288289940,-500.0,0.00094978,120]
[343020715,1732288289949,-500.0,0.00094978,120]
[343020716,1732288289959,-500.0,0.00094978,120]
[343020717,1732288289969,-500.0,0.00094978,120]
[343020718,1732288289979,-408.4,0.00094978,120]
[343020719,1732288289990,-2797.37,0.00094978,120]
[343020720,1732288290000,-2797.37,0.00094978,120]
[343020721,1732288290010,-2797.37,0.00094978,120]
[343020722,1732288290020,-2797.37,0.00094978,120]
[343020723,1732288290031,-2797.52,0.00094978,120]
[343020724,1732288290041,-1837.38,0.00094978,120]
[343020725,1732288290051,-595.07915295,0.00094979,120]
[343020726,1732288290061,-500.0,0.00094979,120]
[343020727,1732288290071,-513.86457944,0.00094979,7]
[343020728,1732288290081,-282.901258,0.00094979,120]
[343020729,1732288290091,-500.0,0.00094979,120]
[343020730,1732288290100,-500.0,0.00094979,120]
[343020731,1732288290110,-500.0,0.00094979,120]
[343020732,1732288290120,-500.0,0.00094979,120]